fUSD/lending_fUSD_20240704
["ID","MTS","AMOUNT","RATE_DAILY","PERIOD"]
[331115456,1720088685006,-151.0,0.000199,2]
[331115457,1720088685052,-151.0,0.000199,2]
[331115458,1720088685098,-154.506982,0.000199,2]
[331115459,1720088685142,-151.0,0.000199,2]
[331115460,1720088685186,-151.0,0.000199,2]
[331115461,1720088685228,-151.0,0.000199,2]
[331115462,1720088685272,-151.0,0.000199,2]
[331115463,1720088685318,-151.0,0.000199,2]
[331115464,1720088685365,-151.0,0.000199,2]
[331115465,1720088685599,-1192.591247,0.000199,2]
[331115466,1720088685649,-4156.405876,0.000199,2]
[331115467,1720088685697,-983.601104,0.000199,2]
[331115468,1720088685744,-1192.591247,0.000199,2]
[331115469,1720088685791,-151.0,0.000199,2]
[331115470,1720088685835,-983.601104,0.000199,2]
[331115471,1720088685878,-151.0,0.000199,2]
[331115472,1720088685924,-151.0,0.000199,2]
[331115473,1720088685968,-235.733409,0.000199,2]
[331115474,1720088686016,-235.733409,0.000199,2]
[331115475,1720088686065,-151.0,0.000199,2]
[331115476,1720088686111,-163.001718,0.000199,2]
[331115477,1720088686158,-163.001718,0.000199,2]
[331115478,1720088686204,-151.0,0.000199,2]
[331115479,1720088686248,-151.0,0.000199,2]
[331115480,1720088686293,-181.293654,0.000199,2]
[331115481,1720088686343,-181.293654,0.000199,2]
[331115482,1720088686393,-893.819692,0.000199,2]
[331115483,1720088686441,-255.937812,0.000199,2]
[331115484,1720088686490,-893.819692,0.000199,2]
[331115485,1720088686537,-255.937812,0.000199,2]
[331115486,1720088686582,-155.187508,0.000199,2]
[331115487,1720088686630,-633.017533,0.000199,2]
[331115488,1720088686676,-155.187508,0.000199,2]
[331115489,1720088686727,-633.017533,0.000199,2]
[331115490,1720088686774,-151.0,0.000199,2]
[331115491,1720088686820,-151.0,0.000199,2]
[331115492,1720088686866,-151.0,0.000199,2]
[331115493,1720088686911,-151.0,0.000199,2]
[331115494,1720088686954,-364.41692002,0.0001999,2]
[331115495,1720088687000,-341.56847787,0.0002,7]
[331115496,1720088687047,-155.27427709,0.0002,3]
[331115497,1720088687092,-159.57353695,0.0002,2]
[331115498,1720088687139,-155.0,0.0002,2]
[331115499,1720088687186,-188.25830506,0.0002,2]
[331115500,1720088687232,-3451.71955749,0.0002,3]
[331115501,1720088687276,-1277.32925782,0.0002,2]
[331115502,1720088687320,-489.35,0.0002,2]
[331115503,1720088687365,-410.57614,0.0002004,2]
[331115504,1720088687412,-764.9,0.00020068,2]
[331115505,1720088687458,-854.2,0.0002011,2]
[331115506,1720088687503,-854.2,0.0002011,2]
[331115507,1720088687552,-854.2,0.0002011,2]
[331115508,1720088687598,-854.2,0.0002011,2]
[331115509,1720088687643,-852.9,0.0002011,2]
[331115510,1720088687694,-2018.95610953,0.000202,2]
[331115511,1720088687739,-500.0,0.00020438,2]
[331115512,1720088687786,-11048.80068401,0.00020438,2]
[331115513,1720088687832,-3074.59338865,0.000205,2]
[331115514,1720088687879,-331.06717121,0.000205,2]
[331115515,1720088687927,-792.54061096,0.000205,2]
[331115516,1720088687974,-190.36952128,0.000205,2]
[331115517,1720088688020,-266.0,0.000205,2]
[331115518,1720088688066,-153.27,0.0002067,2]
[331115519,1720088688112,-133996.46842221,0.0002068,2]
[331115520,1720088688157,-151.2398,0.00020822,2]
[331115521,1720088688201,-151.2398,0.00020822,2]
[331115522,1720088688245,-151.2398,0.00020822,2]
[331115523,1720088688292,-151.2398,0.00020822,2]
[331115524,1720088688338,-151.2398,0.00020822,2]
[331115525,1720088688383,-151.2398,0.00020822,2]
[331115526,1720088688430,-151.0,0.00020822,2]
[331115527,1720088688478,-151.0,0.00020822,2]
[331115528,1720088688524,-6552.68618819,0.0002087,2]
[331115529,1720088688572,-1214.96359917,0.0002087,2]
[331115530,1720088688616,-1929.883,0.00020899,2]
[331115531,1720088688658,-2705.56348769,0.00020997,3]
[331115532,1720088688704,-284.7708622,0.00021,2]
[331115533,1720088688747,-1700.0,0.00021,10]
[331115534,1720088688791,-1300.0,0.00021,2]
[331115535,1720088688835,-265.06151719,0.00021,2]
[331115536,1720088688880,-157.81,0.00021027,2]
[331115537,1720088688926,-11048.80068401,0.00021255,2]
[331115538,1720088688973,-150.58,0.00021278,2]
[331115539,1720088689019,-150.0,0.00021278,2]
[331115540,1720088689063,-150.0,0.00021278,2]
[331115541,1720088689106,-150.0,0.00021278,2]
[331115542,1720088689151,-150.0,0.00021278,2]
[331115543,1720088689195,-150.0,0.00021278,2]
[331115544,1720088689240,-150.0,0.00021278,2]
[331115545,1720088689284,-150.0,0.00021278,2]
[331115546,1720088689329,-150.0,0.00021278,2]
[331115547,1720088689373,-150.0,0.00021278,2]
[331115548,1720088689417,-151.39,0.00021278,2]
[331115549,1720088689458,-199.0,0.000213,2]
[331115550,1720088689499,-180.0,0.00021397,2]
[331115551,1720088689547,-150.0,0.00021636,2]
[331115552,1720088689592,-365.22,0.00021644,2]
[331115553,1720088689637,-155.19,0.00021644,2]
[331115554,1720088689683,-237.82,0.00021644,2]
[331115555,1720088689732,-150.0,0.00021652,2]
[331115556,1720088689777,-150.0,0.00021659,2]
[331115557,1720088689822,-150.0,0.0002167,2]
[331115558,1720088689871,-150.0,0.00021696,2]
[331115559,1720088689919,-189.93492,0.00021702,2]
[331115560,1720088689967,-150.0,0.00021709,2]
[331115561,1720088690015,-150.0,0.00021712,2]
[331115562,1720088690062,-1000.0,0.00021717,2]
[331115563,1720088690109,-150.0,0.00021726,2]
[331115564,1720088690155,-500.0,0.00021741,2]
[331115565,1720088690204,-500.0,0.00021741,2]
[331115566,1720088690252,-500.0,0.00021742,2]
[331115567,1720088690300,-500.0,0.00021742,2]
[331115568,1720088690348,-200.0,0.00021742,2]
[331115569,1720088690568,-150.0,0.00021746,2]
[331115570,1720088690620,-150.0,0.00021748,2]
[331115571,1720088690673,-150.0,0.0002175,2]
[331115572,1720088690725,-150.0,0.00021755,2]
[331115573,1720088690772,-3173.3999109,0.00021758,2]
[331115574,1720088690819,-150.0,0.00021761,2]
[331115575,1720088690867,-150.0,0.00021765,2]
[331115576,1720088690917,-150.0,0.00021767,2]
[331115577,1720088690967,-150.0,0.00021782,2]
[331115578,1720088691018,-172.81856477,0.00021784,2]
[331115579,1720088691065,-150.0,0.00021799,2]
[331115580,1720088691109,-4607.37943,0.000218,2]
[331115581,1720088691160,-150.0,0.00021801,2]
[331115582,1720088691212,-150.0,0.00021812,2]
[331115583,1720088691262,-150.0,0.00021816,2]
[331115584,1720088691311,-150.0,0.00021816,2]
[331115585,1720088691356,-150.0,0.00021818,2]
[331115586,1720088691405,-150.0,0.00021824,2]
[331115587,1720088691451,-150.0,0.00021829,2]
[331115588,1720088691498,-150.0,0.00021832,2]
[331115589,1720088691547,-150.0,0.00021836,2]
[331115590,1720088691598,-150.0,0.00021841,2]
[331115591,1720088691644,-867.82451069,0.00021841,2]
[331115592,1720088691693,-327.27195084,0.00021856,2]
[331115593,1720088691742,-150.0,0.00021859,2]
[331115594,1720088691790,-150.0,0.0002186,2]
[331115595,1720088691836,-150.0,0.00021862,2]
[331115596,1720088691882,-160.0,0.00021864,2]
[331115597,1720088691930,-150.0,0.00021865,2]
[331115598,1720088691978,-160.0,0.00021873,2]
[331115599,1720088692026,-150.0,0.00021876,2]
[331115600,1720088692074,-150.0,0.00021878,2]
[331115601,1720088692119,-6552.68618819,0.0002188,2]
[331115602,1720088692164,-160.0,0.00021882,2]
[331115603,1720088692212,-160.0,0.00021891,2]
[331115604,1720088692258,-160.0,0.00021899,2]
[331115605,1720088692300,-4104.1384313,0.000219,2]
[331115606,1720088692348,-5800.0,0.000219,2]
[331115607,1720088692394,-1013.08,0.000219,2]
[331115608,1720088692442,-2000.0,0.000219,2]
[331115609,1720088692489,-2000.0,0.000219,2]
[331115610,1720088692539,-150.0,0.00021903,2]
[331115611,1720088692587,-150.0,0.00021903,2]
[331115612,1720088692633,-5699.0633668,0.00021905,2]
[331115613,1720088692679,-113723.3422332,0.00021905,2]
[331115614,1720088692729,-151.0,0.00021905,2]
[331115615,1720088692774,-11598.504024,0.00021905,2]
[331115616,1720088692819,-151.0,0.00021905,2]
[331115617,1720088692864,-151.0,0.00021905,2]
[331115618,1720088692910,-151.0,0.00021905,2]
[331115619,1720088692955,-156.813798,0.00021905,2]
[331115620,1720088693000,-161.939017,0.00021905,2]
[331115621,1720088693048,-150.0,0.00021905,2]
[331115622,1720088693096,-161.939017,0.00021905,2]
[331115623,1720088693142,-151.0,0.00021905,2]
[331115624,1720088693189,-151.0,0.00021905,2]
[331115625,1720088693235,-485.003406,0.00021905,2]
[331115626,1720088693277,-485.003406,0.00021905,2]
[331115627,1720088693320,-151.0,0.00021905,2]
[331115628,1720088693365,-511.255414,0.00021905,2]
[331115629,1720088693410,-151.0,0.00021905,2]
[331115630,1720088693456,-511.255414,0.00021905,2]
[331115631,1720088693501,-154.956966,0.00021905,2]
[331115632,1720088693547,-151.0,0.00021905,2]
[331115633,1720088693589,-151.0,0.00021905,2]
[331115634,1720088693633,-154.956966,0.00021905,2]
[331115635,1720088693678,-151.0,0.00021905,2]
[331115636,1720088693726,-151.0,0.00021905,2]
[331115637,1720088693770,-151.0,0.00021905,2]
[331115638,1720088693818,-151.0,0.00021905,2]
[331115639,1720088693865,-151.0,0.00021905,2]
[331115640,1720088693910,-1366.103115,0.00021905,2]
[331115641,1720088693958,-1366.103115,0.00021905,2]
[331115642,1720088694006,-151.0,0.00021905,2]
[331115643,1720088694056,-151.0,0.00021905,2]
[331115644,1720088694107,-151.0,0.00021905,2]
[331115645,1720088694157,-151.0,0.00021905,2]
[331115646,1720088694206,-530.151159,0.00021905,2]
[331115647,1720088694252,-181.812765,0.00021905,2]
[331115648,1720088694300,-530.151159,0.00021905,2]
[331115649,1720088694350,-181.812765,0.00021905,2]
[331115650,1720088694399,-151.0,0.00021905,2]
[331115651,1720088694446,-151.0,0.00021905,2]
[331115652,1720088694492,-299.638432,0.00021905,2]
[331115653,1720088694539,-151.0,0.00021905,2]
[331115654,1720088694582,-151.0,0.00021905,2]
[331115655,1720088694627,-151.0,0.00021905,2]
[331115656,1720088694674,-151.0,0.00021905,2]
[331115657,1720088694723,-151.0,0.00021905,2]
[331115658,1720088694770,-151.0,0.00021905,2]
[331115659,1720088694816,-151.0,0.00021905,2]
[331115660,1720088694861,-151.0,0.00021905,2]
[331115661,1720088694909,-151.0,0.00021905,2]
[331115662,1720088694958,-151.0,0.00021905,2]
[331115663,1720088695007,-183.191039,0.00021905,2]
[331115664,1720088695056,-151.0,0.00021905,2]
[331115665,1720088695105,-1192.591247,0.00021905,2]
[331115666,1720088695153,-4156.405876,0.00021905,2]
[331115667,1720088695201,-983.601104,0.00021905,2]
[331115668,1720088695246,-1192.591247,0.00021905,2]
[331115669,1720088695294,-151.0,0.00021905,2]
[331115670,1720088695340,-983.601104,0.00021905,2]
[331115671,1720088695386,-151.0,0.00021905,2]
[331115672,1720088695595,-152.630781,0.00021905,2]
[331115673,1720088695647,-235.733409,0.00021905,2]
[331115674,1720088695698,-235.733409,0.00021905,2]
[331115675,1720088695747,-151.0,0.00021905,2]
[331115676,1720088695793,-163.001718,0.00021905,2]
[331115677,1720088695840,-163.001718,0.00021905,2]
[331115678,1720088695887,-151.0,0.00021905,2]
[331115679,1720088695933,-151.0,0.00021905,2]
[331115680,1720088695978,-181.293654,0.00021905,2]
[331115681,1720088696026,-181.293654,0.00021905,2]
[331115682,1720088696073,-151.2398,0.00021905,2]
[331115683,1720088696120,-151.2398,0.00021905,2]
[331115684,1720088696170,-893.819692,0.00021905,2]
[331115685,1720088696223,-255.937812,0.00021905,2]
[331115686,1720088696269,-893.819692,0.00021905,2]
[331115687,1720088696313,-255.937812,0.00021905,2]
[331115688,1720088696360,-155.187508,0.00021905,2]
[331115689,1720088696407,-633.017533,0.00021905,2]
[331115690,1720088696452,-155.187508,0.00021905,2]
[331115691,1720088696498,-633.017533,0.00021905,2]
[331115692,1720088696543,-151.0,0.00021905,2]
[331115693,1720088696588,-151.0,0.00021905,2]
[331115694,1720088696634,-151.0,0.00021905,2]
[331115695,1720088696682,-151.0,0.00021905,2]
[331115696,1720088696734,-151.0,0.00021905,2]
[331115697,1720088696782,-240.54,0.00021908,30]
[331115698,1720088696832,-160.0,0.00021908,2]
[331115699,1720088696881,-2896.009056,0.0002191,2]
[331115700,1720088696929,-2000.0,0.0002191,2]
[331115701,1720088696974,-336.02776423,0.00021916,2]
[331115702,1720088697022,-236.84678612,0.00021917,2]
[331115703,1720088697069,-157.89785742,0.00021917,2]
[331115704,1720088697118,-500.0,0.00021917,2]
[331115705,1720088697166,-500.0,0.00021917,4]
[331115706,1720088697215,-500.0,0.00021917,4]
[331115707,1720088697261,-500.0,0.00021917,4]
[331115708,1720088697310,-160.0,0.00021917,2]
[331115709,1720088697358,-1280.9548049,0.00021917,2]
[331115710,1720088697408,-160.0,0.00021917,2]
[331115711,1720088697456,-503.86925969,0.00021917,4]
[331115712,1720088697505,-500.0,0.00021917,4]
[331115713,1720088697554,-504.55956462,0.00021917,4]
[331115714,1720088697601,-500.0,0.00021917,4]
[331115715,1720088697647,-497.47678458,0.00021917,4]
[331115716,1720088697694,-500.0,0.00021917,4]
[331115717,1720088697742,-505.44138904,0.00021917,4]
[331115718,1720088697788,-500.0,0.00021917,4]
[331115719,1720088697833,-627.79544855,0.00021917,4]
[331115720,1720088697878,-500.47052379,0.00021917,4]
[331115721,1720088697923,-500.0,0.00021917,4]
[331115722,1720088697970,-500.0,0.00021917,4]
[331115723,1720088698018,-505.52479135,0.00021917,4]
[331115724,1720088698066,-500.0,0.00021917,4]
[331115725,1720088698114,-504.27244448,0.00021917,4]
[331115726,1720088698162,-504.13764488,0.00021917,4]
[331115727,1720088698210,-500.0,0.00021917,4]
[331115728,1720088698260,-613.01132129,0.00021917,4]
[331115729,1720088698306,-516.73998508,0.00021917,4]
[331115730,1720088698358,-500.0,0.00021917,4]
[331115731,1720088698413,-500.0,0.00021917,4]
[331115732,1720088698462,-500.0,0.00021917,4]
[331115733,1720088698508,-510.69254322,0.00021917,4]
[331115734,1720088698558,-500.0,0.00021917,4]
[331115735,1720088698605,-500.0,0.00021917,4]
[331115736,1720088698651,-500.0,0.00021917,4]
[331115737,1720088698700,-216.81244852,0.00021917,4]
[331115738,1720088698748,-500.0,0.00021917,4]
[331115739,1720088698794,-500.0,0.00021917,4]
[331115740,1720088698841,-500.0,0.00021917,4]
[331115741,1720088698891,-500.0,0.00021917,4]
[331115742,1720088698937,-500.0,0.00021917,4]
[331115743,1720088698984,-500.0,0.00021917,4]
[331115744,1720088699033,-482.24085716,0.00021917,4]
[331115745,1720088699080,-500.0,0.00021917,4]
[331115746,1720088699129,-500.0,0.00021917,4]
[331115747,1720088699177,-500.0,0.00021917,4]
[331115748,1720088699223,-500.0,0.00021917,4]
[331115749,1720088699268,-500.0,0.00021917,4]
[331115750,1720088699312,-498.14328904,0.00021917,4]
[331115751,1720088699359,-500.0,0.00021917,4]
[331115752,1720088699404,-500.0,0.00021917,4]
[331115753,1720088699450,-500.0,0.00021917,4]
[331115754,1720088699496,-500.0,0.00021917,4]
[331115755,1720088699541,-500.0,0.00021917,4]
[331115756,1720088699587,-500.0,0.00021917,4]
[331115757,1720088699634,-500.0,0.00021917,4]
[331115758,1720088699679,-500.0,0.00021917,4]
[331115759,1720088699729,-500.0,0.00021917,4]
[331115760,1720088699777,-500.0,0.00021917,4]
[331115761,1720088699824,-500.0,0.00021917,4]
[331115762,1720088699871,-493.37122849,0.00021917,4]
[331115763,1720088699916,-500.0,0.00021917,4]
[331115764,1720088699961,-500.0,0.00021917,4]
[331115765,1720088700009,-500.0,0.00021917,4]
[331115766,1720088700060,-284.57934665,0.00021917,4]
[331115767,1720088700112,-500.0,0.00021917,4]
[331115768,1720088700163,-500.0,0.00021917,4]
[331115769,1720088700216,-500.0,0.00021917,4]
[331115770,1720088700274,-500.0,0.00021917,4]
[331115771,1720088700324,-500.0,0.00021917,4]
[331115772,1720088700374,-500.0,0.00021917,4]
[331115773,1720088700423,-498.02815956,0.00021917,4]
[331115774,1720088700471,-500.0,0.00021917,4]
[331115775,1720088700518,-500.0,0.00021917,4]
[331115776,1720088700735,-430.9943276,0.00021917,4]
[331115777,1720088700783,-500.0,0.00021917,4]
[331115778,1720088700829,-500.0,0.00021917,4]
[331115779,1720088700875,-500.0,0.00021917,4]
[331115780,1720088700922,-500.0,0.00021917,4]
[331115781,1720088700969,-500.0,0.00021917,4]
[331115782,1720088701016,-615.60585778,0.00021917,4]
[331115783,1720088701061,-500.0,0.00021917,4]
[331115784,1720088701108,-500.0,0.00021917,4]
[331115785,1720088701157,-500.0,0.00021917,4]
[331115786,1720088701203,-500.0,0.00021917,4]
[331115787,1720088701245,-500.0,0.00021917,4]
[331115788,1720088701288,-503.92859511,0.00021917,4]
[331115789,1720088701334,-500.0,0.00021917,4]
[331115790,1720088701379,-500.0,0.00021917,4]
[331115791,1720088701423,-500.0,0.00021917,4]
[331115792,1720088701468,-500.0,0.00021917,4]
[331115793,1720088701514,-439.43622914,0.00021917,4]
[331115794,1720088701563,-500.0,0.00021917,4]
[331115795,1720088701608,-515.77973616,0.00021917,4]
[331115796,1720088701660,-152.218402,0.00021917,2]
[331115797,1720088701709,-500.0,0.00021917,4]
[331115798,1720088701761,-279.53184928,0.00021917,4]
[331115799,1720088701808,-500.0,0.00021917,4]
[331115800,1720088701856,-500.0,0.00021917,4]
[331115801,1720088701904,-500.0,0.00021917,4]
[331115802,1720088701953,-500.0,0.00021917,4]
[331115803,1720088702008,-500.0,0.00021917,4]
[331115804,1720088702055,-500.0,0.00021917,4]
[331115805,1720088702105,-500.0,0.00021917,4]
[331115806,1720088702153,-494.20585928,0.00021917,4]
[331115807,1720088702200,-500.0,0.00021917,4]
[331115808,1720088702246,-500.0,0.00021917,4]
[331115809,1720088702293,-361.53928332,0.00021917,4]
[331115810,1720088702339,-500.0,0.00021917,4]
[331115811,1720088702386,-500.0,0.00021917,4]
[331115812,1720088702433,-500.0,0.00021917,4]
[331115813,1720088702480,-500.0,0.00021917,4]
[331115814,1720088702527,-500.0,0.00021917,4]
[331115815,1720088702573,-500.0,0.00021917,4]
[331115816,1720088702618,-297.21599499,0.00021917,4]
[331115817,1720088702663,-500.0,0.00021917,4]
[331115818,1720088702711,-500.0,0.00021917,4]
[331115819,1720088702758,-500.0,0.00021917,4]
[331115820,1720088702815,-507.92634919,0.00021917,4]
[331115821,1720088702864,-500.0,0.00021917,4]
[331115822,1720088702915,-500.0,0.00021917,4]
[331115823,1720088702969,-500.0,0.00021917,4]
[331115824,1720088703023,-500.0,0.00021917,4]
[331115825,1720088703075,-506.294744,0.00021917,4]
[331115826,1720088703126,-500.0,0.00021917,4]
[331115827,1720088703178,-500.0,0.00021917,4]
[331115828,1720088703230,-500.0,0.00021917,4]
[331115829,1720088703282,-503.10835108,0.00021917,4]
[331115830,1720088703334,-500.0,0.00021917,4]
[331115831,1720088703383,-500.0,0.00021917,4]
[331115832,1720088703432,-500.0,0.00021917,4]
[331115833,1720088703482,-500.0,0.00021917,4]
[331115834,1720088703534,-500.0,0.00021917,4]
[331115835,1720088703585,-510.69018128,0.00021917,4]
[331115836,1720088703635,-500.0,0.00021917,4]
[331115837,1720088703684,-500.0,0.00021917,4]
[331115838,1720088703738,-500.0,0.00021917,4]
[331115839,1720088703785,-500.0,0.00021917,4]
[331115840,1720088703834,-525.7398913,0.00021917,4]
[331115841,1720088703886,-471.68898433,0.00021917,4]
[331115842,1720088703941,-500.0,0.00021917,4]
[331115843,1720088703993,-500.0,0.00021917,4]
[331115844,1720088704047,-500.0,0.00021917,4]
[331115845,1720088704098,-500.0,0.00021917,4]
[331115846,1720088704149,-500.0,0.00021917,4]
[331115847,1720088704208,-500.0,0.00021917,4]
[331115848,1720088704258,-561.8987097,0.00021917,4]
[331115849,1720088704307,-502.016757,0.00021917,4]
[331115850,1720088704357,-500.0,0.00021917,4]
[331115851,1720088704405,-500.0,0.00021917,4]
[331115852,1720088704452,-500.0,0.00021917,4]
[331115853,1720088704498,-500.0,0.00021917,4]
[331115854,1720088704546,-597.19364972,0.00021917,4]
[331115855,1720088704594,-500.0,0.00021917,4]
[331115856,1720088704642,-500.0,0.00021917,4]
[331115857,1720088704691,-500.0,0.00021917,4]
[331115858,1720088704744,-500.0,0.00021917,4]
[331115859,1720088704792,-500.0,0.00021917,4]
[331115860,1720088704841,-330.29896182,0.00021917,4]
[331115861,1720088704889,-500.0,0.00021917,4]
[331115862,1720088704941,-500.0,0.00021917,4]
[331115863,1720088704994,-500.0,0.00021917,4]
[331115864,1720088705045,-500.0,0.00021917,4]
[331115865,1720088705091,-500.0,0.00021917,4]
[331115866,1720088705139,-500.0,0.00021917,4]
[331115867,1720088705187,-644.47145812,0.00021917,4]
[331115868,1720088705233,-500.0,0.00021917,4]
[331115869,1720088705280,-500.0,0.00021917,4]
[331115870,1720088705327,-500.0,0.00021917,4]
[331115871,1720088705372,-500.0,0.00021917,4]
[331115872,1720088705417,-500.0,0.00021917,4]
[331115873,1720088705462,-500.0,0.00021917,4]
[331115874,1720088705510,-500.0,0.00021917,4]
[331115875,1720088705564,-500.0,0.00021917,4]
[331115876,1720088705614,-500.0,0.00021917,4]
[331115877,1720088705663,-500.0,0.00021917,4]
[331115878,1720088705710,-330.86433745,0.00021917,4]
[331115879,1720088705762,-500.0,0.00021917,4]
[331115880,1720088706036,-500.0,0.00021917,4]
[331115881,1720088706083,-500.0,0.00021917,4]
[331115882,1720088706134,-500.0,0.00021917,4]
[331115883,1720088706185,-500.0,0.00021917,4]
[331115884,1720088706233,-500.0,0.00021917,4]
[331115885,1720088706280,-504.2719449,0.00021917,4]
[331115886,1720088706326,-500.0,0.00021917,4]
[331115887,1720088706371,-500.0,0.00021917,4]
[331115888,1720088706416,-500.0,0.00021917,4]
[331115889,1720088706466,-500.0,0.00021917,4]
[331115890,1720088706514,-500.0,0.00021917,4]
[331115891,1720088706569,-500.0,0.00021917,4]
[331115892,1720088706616,-500.0,0.00021917,4]
[331115893,1720088706663,-500.0,0.00021917,4]
[331115894,1720088706711,-500.0,0.00021917,4]
[331115895,1720088706758,-500.0,0.00021917,4]
[331115896,1720088706807,-500.0,0.00021917,4]
[331115897,1720088706854,-500.0,0.00021917,4]
[331115898,1720088706900,-500.0,0.00021917,4]
[331115899,1720088706951,-500.0,0.00021917,4]
[331115900,1720088706998,-500.0,0.00021917,4]
[331115901,1720088707043,-500.0,0.00021917,4]
[331115902,1720088707086,-500.0,0.00021917,4]
[331115903,1720088707141,-500.0,0.00021917,4]
[331115904,1720088707190,-484.14688299,0.00021917,4]
[331115905,1720088707238,-500.0,0.00021917,4]
[331115906,1720088707286,-500.0,0.00021917,4]
[331115907,1720088707331,-500.0,0.00021917,4]
[331115908,1720088707375,-500.0,0.00021917,4]
[331115909,1720088707422,-500.0,0.00021917,4]
[331115910,1720088707468,-500.0,0.00021917,4]
[331115911,1720088707515,-500.0,0.00021917,4]
[331115912,1720088707566,-500.0,0.00021917,4]
[331115913,1720088707614,-500.0,0.00021917,4]
[331115914,1720088707664,-398.67917233,0.00021917,4]
[331115915,1720088707712,-500.0,0.00021917,4]
[331115916,1720088707762,-500.0,0.00021917,4]
[331115917,1720088707811,-500.0,0.00021917,4]
[331115918,1720088707862,-337.09064742,0.00021917,4]
[331115919,1720088707913,-500.0,0.00021917,4]
[331115920,1720088707964,-500.0,0.00021917,4]
[331115921,1720088708010,-500.0,0.00021917,4]
[331115922,1720088708055,-500.0,0.00021917,4]
[331115923,1720088708106,-500.0,0.00021917,4]
[331115924,1720088708156,-500.0,0.00021917,4]
[331115925,1720088708205,-500.0,0.00021917,4]
[331115926,1720088708256,-500.0,0.00021917,4]
[331115927,1720088708305,-500.0,0.00021917,4]
[331115928,1720088708351,-500.0,0.00021917,4]
[331115929,1720088708399,-505.24391161,0.00021917,4]
[331115930,1720088708450,-500.0,0.00021917,4]
[331115931,1720088708496,-500.0,0.00021917,4]
[331115932,1720088708543,-500.0,0.00021917,4]
[331115933,1720088708590,-504.26792544,0.00021917,4]
[331115934,1720088708636,-500.0,0.00021917,4]
[331115935,1720088708679,-500.0,0.00021917,4]
[331115936,1720088708727,-500.0,0.00021917,4]
[331115937,1720088708774,-500.0,0.00021917,4]
[331115938,1720088708818,-500.0,0.00021917,4]
[331115939,1720088708864,-500.0,0.00021917,4]
[331115940,1720088708912,-500.0,0.00021917,4]
[331115941,1720088708966,-500.0,0.00021917,4]
[331115942,1720088709023,-500.0,0.00021917,4]
[331115943,1720088709081,-500.0,0.00021917,4]
[331115944,1720088709140,-539.70880785,0.00021917,4]
[331115945,1720088709201,-308.67401571,0.00021917,4]
[331115946,1720088709270,-500.0,0.00021917,4]
[331115947,1720088709331,-500.0,0.00021917,4]
[331115948,1720088709383,-500.0,0.00021917,4]
[331115949,1720088709434,-500.0,0.00021917,4]
[331115950,1720088709483,-500.0,0.00021917,4]
[331115951,1720088709536,-500.0,0.00021917,4]
[331115952,1720088709585,-500.0,0.00021917,4]
[331115953,1720088709636,-500.0,0.00021917,4]
[331115954,1720088709685,-500.0,0.00021917,4]
[331115955,1720088709739,-500.0,0.00021917,4]